lending/lending_fUSD_20250303
["ID","MTS","AMOUNT","RATE_DAILY","PERIOD"]
[355251739,1741043441019,-565.73,0.00012895,2]
[355251741,1741043441028,-7792.79,0.00012895,2]
[355251743,1741043441038,-500.0,0.00012895,2]
[355251745,1741043441047,-1218.75,0.00012895,2]
[355251747,1741043441057,-500.0,0.00012895,2]
[355251749,1741043441066,-713.29,0.00012895,2]
[355251751,1741043441075,-218.50756111,0.00012895,2]
[355251753,1741043441085,-500.0,0.00012895,2]
[355251755,1741043441094,-529.11,0.00012895,2]
[355251757,1741043441103,-2844.06,0.00012895,2]
[355251759,1741043441113,-1526.61,0.00012895,2]
[355251761,1741043441123,-1542.51,0.00012895,2]
[355251763,1741043441132,-501.94083038,0.00012895,2]
[355251765,1741043441141,-809.24,0.00012895,2]
[355251767,1741043441150,-6116.92,0.00012895,2]
[355251769,1741043441159,-2023.6,0.00012895,2]
[355251771,1741043441168,-21272.93,0.00012895,2]
[355251773,1741043441177,-11497.17,0.00012895,2]
[355251774,1741043441186,-500.0,0.00012895,2]
[355251776,1741043441195,-2097.05,0.00012895,2]
[355251778,1741043441205,-580.36533417,0.00012895,2]
[355251780,1741043441214,-1772.43,0.00012895,2]
[355251782,1741043441223,-500.0,0.00012895,2]
[355251784,1741043441232,-2839.53,0.00012895,2]
[355251786,1741043441242,-1811.57,0.00012895,2]
[355251788,1741043441251,-222.8057512,0.00012895,2]
[355251790,1741043441260,-865.09,0.00012895,2]
[355251792,1741043441269,-976.05,0.00012895,2]
[355251794,1741043441278,-639.71,0.00012895,2]
[355251796,1741043441288,-2309.27,0.00012895,2]
[355251798,1741043441297,-1989.72,0.00012895,2]
[355251800,1741043441306,-1116.6,0.00012895,2]
[355251802,1741043441315,-500.0,0.00012895,2]
[355251804,1741043441325,-500.0,0.00012895,2]
[355251806,1741043441334,-1140.09,0.00012895,2]
[355251808,1741043441343,-1906.96,0.00012895,2]
[355251829,1741043441528,-1140.25,0.00012895,2]
[355251831,1741043441538,-1217.82,0.00012895,2]
[355251833,1741043441547,-3601.14,0.00012895,2]
[355251835,1741043441557,-500.0,0.00012895,2]
[355251837,1741043441566,-500.0,0.00012895,2]
[355251839,1741043441578,-649.76,0.00012895,2]
[355251841,1741043441587,-1511.79,0.00012896,2]
[355251843,1741043441597,-1671.08,0.00012896,2]
[355251845,1741043441606,-1830.93,0.00012896,2]
[355251847,1741043441617,-667.54,0.00012896,2]
[355251849,1741043441627,-1525.19,0.00012896,2]
[355251851,1741043441636,-1170.38,0.00012896,2]
[355251853,1741043441645,-531.30790953,0.00012896,2]
[355251854,1741043441657,-1503.02,0.00012896,2]
[355251856,1741043441667,-500.0,0.00012896,2]
[355251859,1741043441677,-1052.72,0.00012896,2]
[355251860,1741043441686,-698.3,0.00012896,2]
[355251862,1741043441696,-500.0,0.00012896,2]
[355251864,1741043441705,-500.0,0.00012896,2]
[355251866,1741043441714,-500.0,0.00012896,2]
[355251868,1741043441724,-500.0,0.00012896,2]
[355251870,1741043441734,-894.38,0.00012896,2]
[355251872,1741043441744,-500.0,0.00012896,2]
[355251874,1741043441753,-500.0,0.00012896,2]
[355251876,1741043441762,-1193.75,0.00012896,2]
[355251878,1741043441772,-500.0,0.00012896,2]
[355251880,1741043441781,-1843.31,0.00012896,2]
[355251882,1741043441790,-500.0,0.00012896,2]
[355251884,1741043441799,-500.0,0.00012896,2]
[355251886,1741043441809,-1494.97,0.00012896,2]
[355251888,1741043441818,-500.0,0.00012896,2]
[355251890,1741043441827,-1035.7,0.00012896,2]
[355251892,1741043441838,-500.0,0.00012896,2]
[355251895,1741043441851,-900.83,0.00012896,2]
[355251897,1741043441860,-2092.85,0.00012896,2]
[355251899,1741043441870,-500.0,0.00012896,2]
[355251901,1741043441879,-500.0,0.00012896,2]
[355251903,1741043441888,-1286.08,0.00012896,2]
[355251905,1741043441898,-500.0,0.00012896,2]
[355251907,1741043441907,-500.0,0.00012896,2]
[355251909,1741043441916,-1492.06,0.00012896,2]
[355251911,1741043441925,-702.52,0.00012896,2]
[355251912,1741043441934,-500.0,0.00012896,2]
[355251915,1741043441944,-904.27,0.00012896,2]
[355251916,1741043441953,-1589.37,0.00012896,2]
[355251918,1741043441962,-500.0,0.00012896,2]
[355251920,1741043441971,-500.0,0.00012896,2]
[355251922,1741043441981,-841.83,0.00012896,2]
[355251924,1741043441990,-1039.51,0.00012896,2]
[355251926,1741043441999,-715.43,0.00012896,2]
[355251929,1741043442012,-500.0,0.00012896,2]
[355251931,1741043442021,-1017.73,0.00012896,2]
[355251933,1741043442030,-500.0,0.00012896,2]
[355251935,1741043442039,-735.18,0.00012896,2]
[355251936,1741043442049,-1427.92,0.00012896,2]
[355251938,1741043442058,-500.0,0.00012896,2]
[355251940,1741043442067,-727.98,0.00012896,2]
[355251943,1741043442076,-883.26,0.00012896,2]
[355251944,1741043442086,-500.0,0.00012896,2]
[355251946,1741043442095,-1721.68,0.00012896,2]
[355251948,1741043442104,-558.55,0.00012896,2]
[355251950,1741043442114,-500.0,0.00012896,2]
[355251952,1741043442123,-1082.96,0.00012896,2]
[355251954,1741043442133,-571.53,0.00012896,2]
[355251956,1741043442142,-500.0,0.00012896,2]
[355251958,1741043442152,-1087.17,0.00012896,2]
[355251960,1741043442161,-500.0,0.00012896,2]
[355251962,1741043442171,-500.0,0.00012896,2]
[355251964,1741043442180,-939.34,0.00012896,2]
[355251966,1741043442189,-500.0,0.00012896,2]
[355251968,1741043442199,-641.71,0.00012896,2]
[355251970,1741043442208,-500.0,0.00012896,2]
[355251972,1741043442218,-500.0,0.00012896,2]
[355251974,1741043442230,-1694.08,0.00012896,2]
[355251977,1741043442240,-500.0,0.00012896,2]
[355251979,1741043442250,-1901.99,0.00012896,2]
[355251981,1741043442260,-500.0,0.00012896,2]
[355251982,1741043442269,-500.0,0.00012896,2]
[355251985,1741043442281,-905.31,0.00012896,2]
[355251987,1741043442291,-1264.12,0.00012896,2]
[355251989,1741043442301,-728.19,0.00012896,2]
[355251991,1741043442310,-500.0,0.00012896,2]
[355251993,1741043442321,-500.0,0.00012896,2]
[355251995,1741043442331,-1326.5,0.00012896,2]
[355251997,1741043442341,-245.01439429,0.00012896,2]
[355251999,1741043442350,-500.0,0.00012896,2]
[355252001,1741043442360,-826.81,0.00012896,2]
[355252003,1741043442370,-500.0,0.00012896,2]
[355252005,1741043442379,-500.0,0.00012896,2]
[355252007,1741043442389,-500.0,0.00012896,2]
[355252009,1741043442399,-1965.39,0.00012896,2]
[355252011,1741043442408,-500.0,0.00012896,2]
[355252013,1741043442418,-500.0,0.00012896,2]
[355252015,1741043442427,-1595.37,0.00012896,2]
[355252017,1741043442437,-500.0,0.00012896,2]
[355252019,1741043442447,-500.0,0.00012896,2]
[355252021,1741043442457,-1700.08,0.00012896,2]
[355252023,1741043442466,-500.0,0.00012896,2]
[355252025,1741043442475,-1313.38,0.00012896,2]
[355252027,1741043442485,-500.0,0.00012896,2]
[355252029,1741043442494,-500.0,0.00012896,2]
[355252031,1741043442503,-502.80078117,0.00012896,2]
[355252033,1741043442512,-1389.54,0.00012896,2]
[355252035,1741043442522,-500.0,0.00012896,2]
[355252037,1741043442531,-875.85,0.00012896,2]
[355252039,1741043442540,-1005.86,0.00012896,2]
[355252041,1741043442549,-500.0,0.00012896,2]
[355252043,1741043442559,-500.0,0.00012896,2]
[355252045,1741043442569,-500.0,0.00012896,2]
[355252047,1741043442581,-500.0,0.00012896,2]
[355252049,1741043442590,-2654.62,0.00012896,2]
[355252051,1741043442600,-1147.16,0.00012896,2]
[355252053,1741043442610,-500.0,0.00012896,2]
[355252055,1741043442621,-959.39,0.00012896,2]
[355252057,1741043442631,-1379.99,0.00012896,2]
[355252059,1741043442640,-500.0,0.00012896,2]
[355252061,1741043442649,-500.0,0.00012896,2]
[355252063,1741043442660,-1375.22,0.00012896,2]
[355252065,1741043442671,-1087.93,0.00012896,2]
[355252067,1741043442680,-3693.42,0.00012896,2]
[355252069,1741043442690,-683.88,0.00012896,2]
[355252071,1741043442699,-918.33,0.00012896,2]
[355252073,1741043442709,-2555.96,0.00012896,2]
[355252075,1741043442719,-1503.47,0.00012896,2]
[355252077,1741043442729,-1071.84,0.00012896,2]
[355252079,1741043442738,-20333.8,0.00012896,2]
[355252081,1741043442748,-1765.48,0.00012896,2]
[355252083,1741043442759,-724.12,0.00012896,2]
[355252085,1741043442768,-1387.06,0.00012896,2]
[355252087,1741043442777,-2300.09,0.00012896,2]
[355252089,1741043442786,-4473.06,0.00012896,2]
[355252090,1741043442796,-2330.69,0.00012896,2]
[355252092,1741043442805,-500.0,0.00012896,2]
[355252094,1741043442815,-500.0,0.00012896,2]
[355252097,1741043442825,-711.8,0.00012896,2]
[355252099,1741043442835,-2628.08,0.00012896,2]
[355252101,1741043442844,-500.0,0.00012896,2]
[355252103,1741043442854,-500.0,0.00012896,2]
[355252104,1741043442864,-500.0,0.00012896,2]
[355252106,1741043442874,-500.0,0.00012896,2]
[355252109,1741043442884,-2922.82,0.00012896,2]
[355252112,1741043442894,-1522.13,0.00012896,2]
[355252115,1741043442903,-500.0,0.00012896,2]
[355252118,1741043442913,-815.4,0.00012896,2]
[355252121,1741043442923,-909.09,0.00012896,2]
[355252124,1741043442933,-917.5,0.00012896,2]
[355252127,1741043442942,-500.0,0.00012896,2]
[355252130,1741043442951,-2457.28,0.00012896,2]
[355252133,1741043442962,-1064.34,0.00012896,2]
[355252136,1741043442973,-500.0,0.00012896,2]
[355252139,1741043442982,-500.0,0.00012896,2]
[355252142,1741043442993,-500.0,0.00012896,2]
[355252145,1741043443002,-500.0,0.00012896,2]
[355252148,1741043443012,-500.0,0.00012896,2]
[355252151,1741043443021,-630.37,0.00012896,2]
[355252154,1741043443031,-500.0,0.00012896,2]
[355252157,1741043443040,-1219.87,0.00012896,2]
[355252160,1741043443050,-949.32,0.00012896,2]
[355252163,1741043443060,-4798.36,0.00012896,2]
[355252166,1741043443070,-500.0,0.00012896,2]
[355252169,1741043443079,-500.0,0.00012896,2]
[355252172,1741043443089,-500.0,0.00012896,2]
[355252175,1741043443099,-500.0,0.00012896,2]
[355252178,1741043443109,-500.0,0.00012896,2]
[355252181,1741043443119,-36297.44,0.00012896,2]
[355252184,1741043443129,-502.67605693,0.00012896,2]
[355252187,1741043443141,-610.4,0.00012896,2]
[355252190,1741043443151,-923.28,0.00012896,2]
[355252194,1741043443161,-1650.97,0.00012896,2]
[355252197,1741043443171,-500.0,0.00012896,2]
[355252200,1741043443181,-965.43,0.00012896,2]
[355252203,1741043443190,-1974.72,0.00012896,2]
[355252206,1741043443200,-4418.11,0.00012896,2]
[355252209,1741043443209,-1929.1,0.00012896,2]
[355252212,1741043443218,-560.40372235,0.00012896,2]
[355252215,1741043443228,-951.56,0.00012896,2]
[355252217,1741043443237,-1177.45,0.00012896,2]
[355252221,1741043443247,-500.0,0.00012896,2]
[355252224,1741043443256,-1470.97,0.00012896,2]
[355252227,1741043443266,-500.0,0.00012896,2]
[355252230,1741043443275,-556.73661368,0.00012896,2]
[355252233,1741043443285,-500.0,0.00012896,2]
[355252236,1741043443294,-6203.13,0.00012896,2]
[355252239,1741043443304,-201.65,0.00012896,2]
[355252242,1741043443314,-2216.73,0.00012896,2]
[355252245,1741043443323,-500.0,0.00012896,2]
[355252248,1741043443333,-1232.88,0.00012896,2]
[355252251,1741043443343,-1875.47,0.00012896,2]
[355252254,1741043443352,-500.0,0.00012896,2]
[355252257,1741043443361,-500.0,0.00012896,2]
[355252260,1741043443371,-500.0,0.00012896,2]
[355252263,1741043443380,-5792.78,0.00012896,2]
[355252266,1741043443390,-500.0,0.00012896,2]
[355252269,1741043443400,-500.0,0.00012896,2]
[355252272,1741043443409,-873.88,0.00012896,2]
[355252274,1741043443419,-500.0,0.00012896,2]
[355252278,1741043443429,-500.0,0.00012896,2]
[355252281,1741043443438,-2736.05,0.00012896,2]
[355252283,1741043443448,-500.0,0.00012896,2]
[355252286,1741043443458,-500.0,0.00012896,2]
[355252289,1741043443467,-500.0,0.00012896,2]
[355252293,1741043443477,-2766.08,0.00012896,2]
[355252295,1741043443487,-500.0,0.00012896,2]
[355252298,1741043443496,-500.0,0.00012896,2]
[355252301,1741043443506,-810.91,0.00012896,2]
[355252304,1741043443515,-3190.78,0.00012896,2]
[355252307,1741043443524,-1119.55,0.00012896,2]
[355252310,1741043443534,-500.0,0.00012896,2]
[355252313,1741043443543,-1157.35,0.00012896,2]
[355252316,1741043443552,-800.43,0.00012896,2]
[355252319,1741043443562,-787.88,0.00012897,2]
[355252322,1741043443571,-500.0,0.00012897,2]
[355252325,1741043443586,-429.99674231,0.00012897,2]
[355252328,1741043443596,-500.0,0.00012897,2]
[355252331,1741043443606,-697.42,0.00012897,2]
[355252334,1741043443616,-500.0,0.00012897,2]
[355252337,1741043443627,-500.0,0.00012897,2]
[355252375,1741043443806,-500.0,0.00012897,2]
[355252378,1741043443816,-303.90708276,0.00012897,2]
[355252381,1741043443826,-1043.08,0.00012897,2]
[355252384,1741043443836,-500.0,0.00012897,2]
[355252387,1741043443846,-500.0,0.00012897,2]
[355252390,1741043443855,-500.0,0.00012897,2]
[355252392,1741043443865,-535.78680824,0.00012897,2]
[355252395,1741043443874,-702.8,0.00012897,2]
[355252398,1741043443883,-500.0,0.00012897,2]
[355252401,1741043443893,-711.3,0.00012897,2]
[355252404,1741043443903,-500.0,0.00012897,2]
[355252407,1741043443913,-163.89828706,0.00012897,2]
[355252409,1741043443922,-1073.05,0.00012897,2]
[355252411,1741043443932,-637.83,0.00012897,2]
[355252413,1741043443942,-537.69496342,0.00012897,2]
[355252415,1741043443951,-500.0,0.00012897,2]
[355252418,1741043443960,-685.42,0.00012897,2]
[355252421,1741043443969,-500.0,0.00012897,2]
[355252423,1741043443979,-500.0,0.00012897,2]
[355252426,1741043443988,-690.95,0.00012897,2]
[355252429,1741043443997,-726.15,0.00012897,2]
[355252432,1741043444007,-500.0,0.00012897,2]
[355252434,1741043444016,-500.0,0.00012897,2]
[355252436,1741043444025,-500.0,0.00012897,2]
[355252438,1741043444034,-500.0,0.00012897,2]
[355252440,1741043444044,-795.26,0.00012897,2]
[355252442,1741043444053,-500.0,0.00012897,2]
[355252444,1741043444062,-500.0,0.00012897,2]
[355252446,1741043444072,-500.0,0.00012897,2]
[355252448,1741043444081,-500.0,0.00012897,2]
[355252450,1741043444091,-933.14,0.00012897,2]
[355252452,1741043444100,-500.0,0.00012897,2]
[355252454,1741043444109,-500.0,0.00012897,2]
[355252456,1741043444118,-500.0,0.00012897,2]
[355252458,1741043444128,-783.35,0.00012897,2]
[355252460,1741043444137,-954.49,0.00012897,2]
[355252463,1741043444148,-500.0,0.00012897,2]
[355252465,1741043444157,-765.4,0.00012897,2]
[355252468,1741043444166,-500.0,0.00012897,2]
[355252471,1741043444175,-500.0,0.00012897,2]
[355252475,1741043444185,-1126.03,0.00012897,2]
[355252478,1741043444194,-500.0,0.00012897,2]
[355252481,1741043444204,-500.0,0.00012897,2]
[355252484,1741043444213,-500.0,0.00012897,2]
[355252487,1741043444223,-1402.74,0.00012897,2]
[355252490,1741043444232,-500.0,0.00012897,2]
[355252493,1741043444242,-500.0,0.00012897,2]
[355252496,1741043444251,-500.0,0.00012897,7]
[355252498,1741043444260,-857.32,0.00012897,2]
[355252501,1741043444269,-1159.12,0.00012897,2]
[355252504,1741043444279,-500.0,0.00012897,2]
[355252507,1741043444288,-1080.19,0.00012897,2]
[355252510,1741043444298,-500.0,0.00012897,2]
[355252513,1741043444308,-500.0,0.00012897,2]
[355252516,1741043444317,-767.08,0.00012897,2]
[355252519,1741043444327,-500.0,0.00012897,2]
[355252521,1741043444336,-500.0,0.00012897,2]
[355252524,1741043444346,-500.0,0.00012897,2]
[355252527,1741043444355,-994.42,0.00012897,2]
[355252530,1741043444365,-500.0,0.00012897,2]
[355252533,1741043444375,-752.57,0.00012897,2]
[355252536,1741043444384,-506.74345969,0.00012897,2]
[355252539,1741043444394,-500.0,0.00012897,2]
[355252542,1741043444404,-1292.49,0.00012897,2]
[355252545,1741043444414,-500.0,0.00012897,2]
[355252548,1741043444423,-500.0,0.00012897,2]
[355252551,1741043444432,-238.82643982,0.00012897,2]
[355252554,1741043444442,-500.0,0.00012897,2]
[355252557,1741043444451,-500.0,0.00012897,2]
[355252560,1741043444460,-500.0,0.00012897,2]
[355252563,1741043444470,-926.48,0.00012897,2]
[355252566,1741043444479,-500.0,0.00012897,2]
[355252569,1741043444489,-914.56,0.00012897,2]
[355252571,1741043444498,-500.0,0.00012897,2]
[355252574,1741043444507,-1363.89,0.00012897,2]
[355252577,1741043444516,-525.96965732,0.00012897,2]
[355252580,1741043444526,-712.23,0.00012897,2]
[355252582,1741043444535,-500.0,0.00012897,2]
[355252585,1741043444544,-500.0,0.00012897,2]
[355252589,1741043444554,-1055.3,0.00012897,2]
[355252592,1741043444564,-500.0,0.00012897,2]
[355252594,1741043444575,-500.0,0.00012897,2]
[355252597,1741043444589,-523.52511215,0.00012897,2]
[355252600,1741043444599,-806.74,0.00012897,2]
[355252603,1741043444609,-500.0,0.00012897,2]
[355252605,1741043444619,-500.0,0.00012897,2]
[355252607,1741043444629,-500.0,0.00012897,2]
[355252609,1741043444638,-500.0,0.00012897,2]
[355252611,1741043444647,-500.0,0.00012897,2]
[355252613,1741043444657,-601.77,0.00012897,2]
[355252615,1741043444668,-762.86,0.00012897,2]
[355252617,1741043444678,-500.0,0.00012897,2]
[355252619,1741043444687,-500.0,0.00012897,2]
[355252621,1741043444696,-500.0,0.00012897,2]
[355252623,1741043444705,-500.0,0.00012897,2]
[355252625,1741043444714,-500.0,0.00012897,2]
[355252627,1741043444724,-500.0,0.00012897,2]
[355252628,1741043444733,-500.0,0.00012897,2]
[355252630,1741043444743,-500.0,0.00012897,2]
[355252632,1741043444752,-752.26,0.00012897,2]
[355252634,1741043444761,-500.0,0.00012897,2]
[355252636,1741043444771,-500.0,0.00012897,2]
[355252638,1741043444780,-816.92,0.00012897,2]
[355252640,1741043444790,-500.0,0.00012897,2]
[355252642,1741043444799,-500.0,0.00012897,2]
[355252644,1741043444808,-500.0,0.00012897,2]
[355252646,1741043444821,-500.0,0.00012897,2]
[355252648,1741043444843,-1013.53,0.00012897,2]
[355252650,1741043444863,-635.96,0.00012897,2]
[355252652,1741043444884,-500.0,0.00012897,2]
[355252654,1741043444905,-500.0,0.00012897,2]
[355252656,1741043444925,-591.96,0.00012897,2]
[355252658,1741043444946,-500.0,0.00012897,2]
[355252660,1741043444966,-875.55,0.00012897,2]
[355252662,1741043444987,-500.0,0.00012897,2]
[355252663,1741043445007,-500.0,0.00012897,2]
[355252665,1741043445030,-500.0,0.00012897,2]
[355252667,1741043445040,-500.0,0.00012897,2]
[355252669,1741043445050,-500.0,0.00012897,2]
[355252671,1741043445059,-500.0,0.00012897,2]
[355252673,1741043445069,-500.0,0.00012897,2]
[355252675,1741043445078,-500.0,0.00012897,2]
[355252677,1741043445087,-500.0,0.00012897,2]
[355252679,1741043445096,-500.0,0.00012897,2]
[355252681,1741043445106,-500.0,0.00012897,2]
[355252683,1741043445115,-500.0,0.00012897,2]
[355252685,1741043445125,-731.61,0.00012897,2]
[355252687,1741043445134,-500.0,0.00012897,2]
[355252689,1741043445144,-500.0,0.00012897,2]
[355252691,1741043445153,-500.0,0.00012897,2]
[355252693,1741043445161,-715.26,0.00012897,2]
[355252695,1741043445171,-500.0,0.00012897,2]
[355252697,1741043445181,-541.0431938,0.00012897,2]
[355252699,1741043445190,-500.0,0.00012897,2]
[355252701,1741043445199,-4842.74107222,0.00012897,2]
[355252703,1741043445209,-500.0,0.00012897,2]
[355252705,1741043445218,-500.0,0.00012897,2]
[355252707,1741043445228,-500.0,0.00012897,2]
[355252709,1741043445237,-262.82,0.00012897,2]
[355252711,1741043445248,-624.26,0.00012897,2]
[355252712,1741043445263,-500.0,0.00012897,2]
[355252714,1741043445273,-500.0,0.00012897,2]
[355252716,1741043445283,-662.52,0.00012897,2]
[355252718,1741043445294,-500.0,0.00012897,2]
[355252720,1741043445304,-1031.62,0.00012897,2]
[355252722,1741043445314,-500.0,0.00012897,2]
[355252724,1741043445323,-500.0,0.00012897,2]
[355252726,1741043445332,-500.0,0.00012897,2]
[355252728,1741043445342,-500.0,0.00012897,2]
[355252730,1741043445351,-500.0,0.00012897,2]
[355252732,1741043445361,-500.0,0.00012897,2]
[355252734,1741043445371,-577.41,0.00012897,2]
[355252736,1741043445381,-500.0,0.00012897,2]
[355252738,1741043445390,-500.0,0.00012897,2]
[355252740,1741043445400,-256.04,0.00012897,2]
[355252742,1741043445409,-376.55052799,0.00012897,2]
[355252744,1741043445418,-500.0,0.00012897,2]
[355252746,1741043445428,-500.0,0.00012897,2]
[355252748,1741043445438,-500.0,0.00012897,2]
[355252750,1741043445447,-667.19,0.00012897,2]
[355252752,1741043445456,-500.0,0.00012897,2]
[355252754,1741043445466,-166.73892651,0.00012897,2]
[355252756,1741043445475,-189.62923737,0.00012897,2]
[355252758,1741043445485,-500.0,0.00012897,2]
[355252760,1741043445494,-391.1621792,0.00012897,2]
[355252762,1741043445503,-500.0,0.00012897,2]
[355252764,1741043445512,-500.0,0.00012897,2]
[355252766,1741043445522,-500.0,0.00012897,2]
[355252768,1741043445532,-500.0,0.00012897,2]
[355252770,1741043445541,-500.0,0.00012898,2]
[355252772,1741043445550,-1148.22,0.00012898,2]
[355252774,1741043445561,-488.73160937,0.00012898,2]
[355252776,1741043445570,-500.0,0.00012898,2]
[355252778,1741043445585,-1275.31,0.00012898,2]
[355252780,1741043445594,-500.0,0.00012898,2]
[355252782,1741043445604,-997.6,0.00012898,2]
[355252784,1741043445614,-1031.88,0.00012898,2]
[355252786,1741043445626,-261.43948139,0.00012898,2]
[355252788,1741043445635,-1711.69,0.00012898,2]
[355252790,1741043445644,-1451.24,0.00012898,2]
[355252792,1741043445654,-1299.15,0.00012898,2]
[355252794,1741043445665,-500.0,0.00012898,2]
[355252796,1741043445674,-1716.34,0.00012898,2]
[355252798,1741043445684,-2043.99,0.00012898,2]
[355252800,1741043445693,-1123.15,0.00012898,2]
[355252802,1741043445702,-500.0,0.00012898,2]
[355252804,1741043445712,-1449.14,0.00012898,2]
[355252806,1741043445722,-500.0,0.00012898,2]
[355252808,1741043445731,-1796.84,0.00012898,2]
[355252810,1741043445741,-1040.38,0.00012898,2]
[355252812,1741043445751,-1841.93,0.00012898,2]
[355252814,1741043445761,-1961.44,0.00012898,2]
[355252816,1741043445770,-1900.73,0.00012898,2]
[355252818,1741043445780,-1398.31,0.00012898,2]
[355252820,1741043445789,-1797.54,0.00012898,2]
[355252822,1741043445799,-1048.84,0.00012898,2]
[355252823,1741043445808,-845.94,0.00012898,2]
[355252825,1741043445818,-1657.79,0.00012898,2]
[355252827,1741043445827,-1347.85,0.00012898,2]
[355252829,1741043445837,-2149.49,0.00012898,2]
[355252831,1741043445846,-890.24,0.00012898,2]
[355252852,1741043446010,-1378.08,0.00012898,2]
[355252854,1741043446020,-1026.97,0.00012898,2]
[355252856,1741043446029,-1302.3,0.00012898,2]
[355252858,1741043446039,-500.0,0.00012898,2]
[355252860,1741043446048,-1799.04,0.00012898,2]
[355252862,1741043446057,-1892.62,0.00012898,2]
[355252863,1741043446066,-500.0,0.00012898,2]
[355252865,1741043446075,-1390.59,0.00012898,2]
[355252867,1741043446084,-1506.13,0.00012898,2]
[355252869,1741043446093,-1110.38,0.00012898,2]
[355252871,1741043446103,-312.726107,0.000129,2]
[355252873,1741043446112,-682.32997109,0.000129,2]
[355252875,1741043446122,-1000.0,0.000129,2]
[355252877,1741043446131,-1609.3409971,0.000129,2]
[355252879,1741043446140,-4052.68378188,0.000129,2]
[355252881,1741043446150,-150.5,0.0001293,2]
[355252883,1741043446159,-170849.56402375,0.00012999,2]
[355252885,1741043446169,-3506.0,0.00012999,2]
[355252886,1741043446178,-481.67510396,0.00013,2]
[355252888,1741043446187,-931221.8297103,0.00013,2]
[355252890,1741043446197,-184.0,0.00013,3]
[355252892,1741043446206,-671546.80307938,0.00013,2]
[355252894,1741043446216,-265335.9742769,0.00013,2]
[355252896,1741043446225,-189928.70873181,0.00013,2]
[355252958,1741043446921,-435.38038272,0.00013,2]
[355252961,1741043446941,-22247.43381485,0.00013,2]
[355252964,1741043446959,-2793.02318066,0.00013,2]
[355252974,1741043447049,-311.4489,0.00013,2]
[355252977,1741043447068,-1600.65,0.00013,2]
[355252980,1741043447087,-717.10633169,0.00013,2]
[355252983,1741043447105,-301.92197159,0.00013,2]
[355253115,1741043448390,-558.92469961,0.00012894,2]
[355253117,1741043448399,-814.78,0.00012895,2]
[355253118,1741043448409,-7291.94813247,0.00013,2]
[355253122,1741043448430,-20510.50465917,0.00013,2]
[355253126,1741043448462,-22777.79725648,0.00013,2]
[355253215,1741043449393,-1741.16837425,0.00013,2]
[355253217,1741043449405,-2429.625,0.00013,2]
[355253219,1741043449416,-1772.16665824,0.00013,2]
[355253256,1741043449790,-500.0,0.00012894,2]
[355253258,1741043449800,-1680.21348062,0.00013,2]
[355253260,1741043449811,-3142.02731991,0.00013,2]
[355253262,1741043449822,-2154.69700108,0.00013,2]
[355253264,1741043449834,-5173.7799921,0.00013,2]
[355253268,1741043449863,-3281.0519054,0.00013,2]
[355253270,1741043449876,-7265.6419,0.00013,2]